bitfinex/quotes_SOLUSD_20250307
["timestamp","ask_amount","ask_price","bid_price","bid_amount"]
[1741312367935,3.60225671,141.07,140.96,168.61807556]
[1741312367936,1.4807,141.06,140.97,0.14216157]
[1741312368221,1.4807,141.06,140.97,312.14216157]
[1741312370112,18.79181043,141.05,140.97,312.0]
[1741312370415,1.4807,141.04,140.97,312.0]
[1741312371704,1.4807,141.07,140.97,0.14216157]
[1741312371906,20.13034886,141.07,140.97,0.28432314]
[1741312372337,13.32831652,141.08,140.97,18.933972]
[1741312372508,13.32831652,141.08,140.97,0.28432314]
[1741312373221,18.79181043,141.07,140.94,0.14216157]
[1741312373397,18.64964886,141.05,140.94,0.14216157]
[1741312373599,1.4807,141.04,140.94,0.28432314]
[1741312374210,20.27251043,141.07,140.94,0.28432314]
[1741312374405,1.4807,141.07,140.96,0.14216157]
[1741312374639,1.4807,141.07,140.97,0.14216157]
[1741312374640,20.13034886,141.07,140.97,0.14216157]
[1741312374816,20.13034886,141.07,140.99,0.14216157]
[1741312375331,20.13034886,141.07,140.97,0.28432314]
[1741312375496,18.79181043,141.06,140.97,0.14216157]
[1741312375700,1.4807,141.05,140.97,0.14216157]
[1741312375929,1.4807,141.05,140.94,0.28432314]
[1741312376143,18.64964886,141.06,140.96,0.28432314]
[1741312376927,21.86761652,141.08,140.99,0.14216157]
[1741312377236,11.84761652,141.08,141.01,0.14216157]
[1741312378227,1.4807,141.07,141.01,312.0]
[1741312378421,18.64964886,141.07,141.01,312.0]
[1741312378822,11.84761652,141.08,141.01,312.0]
[1741312379912,11.84761652,141.08,140.99,18.933972]
[1741312380535,11.84761652,141.08,140.98,0.28432314]
[1741312380703,11.84761652,141.08,141.0,18.79181043]
[1741312380909,11.84761652,141.08,141.01,0.14216157]
[1741312381874,11.84761652,141.08,141.02,0.14216157]
[1741312382237,1.5909,141.08,141.02,0.14216157]
[1741312382611,1.5909,141.08,141.03,0.14216157]
[1741312382812,0.033,141.1,141.04,0.14216157]
[1741312383039,0.033,141.1,141.06,0.14216157]
[1741312383440,0.033,141.1,141.06,0.28432314]
[1741312383649,0.033,141.1,141.06,29.61335774]
[1741312383831,0.033,141.1,141.06,36.70225774]
[1741312384030,0.033,141.1,141.09,18.79181043]
[1741312384356,0.033,141.1,141.09,0.28432314]
[1741312384648,0.033,141.1,141.09,0.14216157]
[1741312386657,0.033,141.1,141.06,0.28432314]
[1741312387229,0.033,141.1,141.09,0.14216157]
[1741312387554,0.033,141.1,141.08,0.14216157]
[1741312387723,0.033,141.1,141.03,18.64964886]
[1741312388048,0.033,141.1,141.01,173.7835346]
[1741312388223,0.033,141.1,141.01,144.4545]
[1741312388426,0.033,141.1,141.02,0.28432314]
[1741312388652,0.033,141.1,141.0,18.64964886]
[1741312388955,1.6307,141.09,141.01,0.28432314]
[1741312389522,1.6307,141.09,141.03,312.0]
[1741312390667,109.71686079,141.08,140.95,219.9]
[1741312390840,1.4807,141.07,140.96,18.64964886]
[1741312391241,18.64964886,141.06,140.95,137.8]
[1741312391567,1.4807,141.05,140.95,137.8]
[1741312391736,1.4807,141.05,140.95,0.28432314]
[1741312392239,18.64964886,141.04,140.93,18.64964886]
[1741312392445,1.4807,141.03,140.93,18.64964886]
[1741312392752,1.4807,141.03,140.94,0.28432314]
[1741312392753,1.6187,141.02,140.94,0.28432314]
[1741312393062,1.6187,141.02,140.94,0.14216157]
[1741312393358,1.6187,141.02,140.96,0.28432314]
[1741312393853,1.6187,141.02,140.96,312.14216157]
[1741312394239,1.59064072,141.02,140.96,312.0]
[1741312395052,5.14332863,141.02,140.96,312.0]
[1741312395255,5.14332863,141.02,140.92,156.44964886]
[1741312395556,7.4919,141.01,140.91,0.03]
[1741312395940,7.4919,141.01,140.91,0.31432314]
[1741312396557,99.85902236,141.0,140.96,0.03]
[1741312396854,0.14216157,140.98,140.91,0.03]
[1741312397237,0.14216157,140.96,140.87,1.9660009]
[1741312397439,0.14216157,140.94,140.87,1.9660009]
[1741312397662,18.64964886,140.94,140.87,1.9660009]
[1741312398330,1.4807,140.93,140.87,313.9660009]
[1741312398555,1.4807,140.93,140.87,1.9660009]
[1741312399564,10.0,140.95,140.88,0.14216157]
[1741312400432,1.4807,140.94,140.87,1.9660009]
[1741312401555,1.4807,140.94,140.87,313.9660009]
[1741312402342,1.4807,140.94,140.87,1.9660009]
[1741312402544,18.64964886,140.92,140.87,1.9660009]
[1741312402766,20.13034886,140.92,140.87,1.9660009]
[1741312403148,81.06721193,140.91,140.87,1.9660009]
[1741312404845,1.4807,140.94,140.87,1.9660009]
[1741312405158,20.13034886,140.94,140.87,1.9660009]
[1741312405356,0.14216157,140.92,140.87,1.9660009]
[1741312405545,1.62286157,140.92,140.87,1.9660009]
[1741312406364,18.64964886,140.9,140.87,1.9660009]
[1741312406571,1.4807,140.89,140.87,1.9660009]
[1741312407254,3.0919,140.89,140.87,1.9660009]
[1741312407453,3.0919,140.89,140.82,312.03]
[1741312407454,6.3143,140.88,140.82,0.03]
[1741312407647,1.4807,140.87,140.82,0.03]
[1741312408244,81.06721193,140.86,140.82,0.03]
[1741312408462,0.14216157,140.84,140.82,0.03]
[1741312408772,0.14216157,140.84,140.8,0.03]
[1741312408773,82.54791193,140.83,140.8,0.03]
[1741312409066,18.64964886,140.82,140.8,1.4545461]
[1741312409272,1.4807,140.81,140.8,1.4545461]
[1741312409654,81.06721193,140.83,140.8,1.4545461]
[1741312409859,81.06721193,140.86,140.8,1.4545461]
[1741312410053,82.54791193,140.85,140.8,1.4545461]
[1741312410268,81.06721193,140.85,140.8,1.4545461]
[1741312410466,88.86221193,140.88,140.8,1.4545461]
[1741312410667,15.17223555,140.89,140.81,0.14216157]
[1741312410971,3.58103555,140.89,140.81,18.933972]
[1741312411269,81.06721193,140.91,140.81,18.933972]
[1741312411656,7.5448,140.92,140.81,18.933972]
[1741312411967,18.64964886,140.91,140.81,0.14216157]
[1741312412169,82.54791193,140.9,140.81,0.14216157]
[1741312412387,18.64964886,140.89,140.81,0.14216157]
[1741312412961,1.4807,140.88,140.81,0.14216157]
[1741312413276,1.4807,140.88,140.8,1.4545461]
[1741312413277,18.64964886,140.87,140.8,1.4545461]
[1741312413577,1.4807,140.86,140.8,1.4545461]
[1741312414553,18.79181043,140.84,140.8,1.4545461]
[1741312414859,1.4807,140.83,140.8,1.4545461]
[1741312415170,99.85902236,140.82,140.72,0.03]
[1741312415490,92.52791193,140.81,140.72,0.03]
[1741312416147,18.79181043,140.8,140.72,0.03]
[1741312416365,91.04721193,140.81,140.72,0.03]
[1741312416684,91.04721193,140.81,140.72,18.67964886]
[1741312416987,91.04721193,140.81,140.73,0.14216157]
[1741312417554,91.04721193,140.81,140.74,0.14216157]
[1741312417881,9.98,140.81,140.75,0.14216157]
[1741312418059,3.53741229,140.83,140.75,0.14216157]
[1741312418376,1.5448,140.85,140.74,0.28432314]
[1741312418581,1.5448,140.85,140.74,1.7756309]
[1741312418780,92.52791193,140.86,140.76,0.28432314]
[1741312418781,91.04721193,140.86,140.76,0.28432314]
[1741312419072,91.04721193,140.86,140.76,18.933972]
[1741312419273,1.4807,140.85,140.76,18.933972]
[1741312419449,1.4807,140.85,140.76,0.14216157]
[1741312419655,1.4807,140.85,140.74,0.14216157]
[1741312419966,92.52791193,140.86,140.74,18.933972]
[1741312420291,0.033,140.87,140.79,18.79181043]
[1741312420648,0.033,140.87,140.8,0.14216157]
[1741312420879,1.5137,140.87,140.75,6.2673]
[1741312421177,11.4937,140.87,140.78,312.0]
[1741312421388,18.79181043,140.83,140.72,0.03]
[1741312421549,18.79181043,140.81,140.72,0.03]
[1741312421750,18.79181043,140.79,140.72,0.03]
[1741312421966,1.4807,140.78,140.72,0.03]
[1741312422170,81.06721193,140.79,140.72,0.03]
[1741312422358,81.06721193,140.79,140.73,0.14216157]
[1741312422786,81.06721193,140.79,140.72,312.03]
[1741312423155,81.06721193,140.79,140.73,0.14216157]
[1741312423586,1.4807,140.81,140.73,0.14216157]
[1741312423750,5.05716401,140.81,140.73,0.14216157]
[1741312423958,1.4807,140.81,140.73,0.14216157]
[1741312424677,3.54049639,140.81,140.73,18.933972]
[1741312424972,81.06721193,140.83,140.73,18.933972]
[1741312425175,81.06721193,140.86,140.77,0.14216157]
[1741312425368,0.033,140.87,140.78,0.14216157]
[1741312425782,0.033,140.87,140.77,18.79181043]
[1741312425966,18.82481043,140.87,140.77,0.14216157]
[1741312426170,1.4807,140.86,140.77,0.14216157]
[1741312426369,18.79181043,140.85,140.73,0.28432314]
[1741312426565,18.79181043,140.83,140.72,6.3891]
[1741312426774,1.4807,140.82,140.72,6.3891]
[1741312426980,3.063,140.82,140.72,6.3891]
[1741312427471,18.79181043,140.81,140.72,6.3891]
[1741312427665,1.4807,140.8,140.72,6.3891]
[1741312427886,1.4807,140.8,140.72,318.3891]
[1741312428084,1.4807,140.8,140.73,0.14216157]
[1741312428271,9.98,140.84,140.73,18.933972]
[1741312428786,1.4807,140.83,140.73,18.933972]
[1741312429780,9.98,140.84,140.73,18.933972]
[1741312430002,3.0909,140.86,140.73,18.933972]
[1741312430180,1.6102,140.86,140.75,18.933972]
[1741312430485,3.68081233,140.87,140.77,0.14216157]
[1741312431291,3.68081233,140.87,140.78,312.0]
[1741312432173,1.62286157,140.86,140.77,0.14216157]
[1741312432368,1.62286157,140.86,140.76,1.6257]
[1741312432988,1.62286157,140.86,140.77,0.14216157]
[1741312433691,1.4807,140.86,140.77,18.933972]
[1741312434081,1.4807,140.86,140.77,0.28432314]
[1741312434276,3.68081233,140.87,140.78,6.0475]
[1741312434475,0.033,140.87,140.8,0.14216157]
[1741312434675,0.033,140.87,140.85,0.14216157]
[1741312435189,0.033,140.87,140.85,312.0]
[1741312435374,0.033,140.87,140.84,6.0475]
[1741312435582,0.033,140.87,140.81,0.14216157]
[1741312436190,3.62354669,140.87,140.8,6.0475]
[1741312436370,1.4807,140.86,140.76,24.69714886]
[1741312436571,1.4807,140.86,140.77,0.28432314]
[1741312437067,1.4807,140.86,140.76,24.69714886]
[1741312437273,1.4807,140.86,140.77,0.28432314]
[1741312437692,1.4807,140.86,140.76,6.0475]
[1741312437992,1.4807,140.86,140.77,0.14216157]
[1741312438197,9.96,140.85,140.77,0.14216157]
[1741312438396,1.4807,140.84,140.76,6.0475]
[1741312438799,1.4807,140.84,140.77,0.14216157]
[1741312438996,9.96,140.85,140.77,0.14216157]
[1741312438997,9.96,140.85,140.77,0.28432314]
[1741312439690,1.4807,140.86,140.77,0.28432314]
[1741312439999,82.54791193,140.86,140.77,0.14216157]
[1741312441929,18.64964886,140.85,140.77,0.14216157]
[1741312442114,1.4807,140.84,140.77,0.14216157]
[1741312442681,1.4807,140.84,140.76,6.0475]
[1741312442881,1.4807,140.84,140.74,0.28432314]
[1741312443111,99.71686079,140.83,140.72,6.1114]
[1741312443320,82.54791193,140.82,140.73,0.28432314]
[1741312443606,82.54791193,140.82,140.72,6.1114]
[1741312443803,82.54791193,140.82,140.72,24.76104886]
[1741312444008,82.54791193,140.82,140.73,0.28432314]
[1741312444617,89.15331193,140.82,140.73,0.28432314]
[1741312445009,18.64964886,140.81,140.73,0.14216157]
[1741312445220,82.54791193,140.8,140.72,0.03]
[1741312445423,81.06721193,140.79,140.72,0.03]
[1741312445720,20.13034886,140.78,140.72,0.03]
[1741312446106,11.4207,140.78,140.72,0.03]
[1741312446434,15.49187588,140.78,140.72,0.03]
[1741312447205,1.4807,140.77,140.72,0.03]
[1741312447505,82.54791193,140.77,140.72,0.03]
[1741312447909,82.54791193,140.77,140.67,312.0]
[1741312448112,0.14216157,140.75,140.62,6.3055]
[1741312448322,20.23744886,140.73,140.62,6.3055]
[1741312448624,1.4807,140.72,140.63,0.28432314]
[1741312449301,92.48791193,140.72,140.62,6.3055]
[1741312449506,18.64964886,140.71,140.62,6.3055]
[1741312449727,1.4807,140.7,140.62,6.3055]
[1741312449924,99.71686079,140.69,140.59,8.673954]
[1741312450136,18.64964886,140.67,140.59,2.011954]
[1741312450308,1.4807,140.66,140.59,2.011954]
[1741312450623,99.71686079,140.65,140.59,2.011954]
[1741312450811,1.4807,140.64,140.59,2.011954]
[1741312451428,18.64964886,140.63,140.58,0.03]
[1741312451626,3.0661,140.64,140.58,0.03]
[1741312451934,1.5854,140.64,140.58,0.03]
[1741312452120,81.06721193,140.65,140.58,0.03]
[1741312452319,82.54791193,140.65,140.58,0.03]
[1741312452727,9.94,140.66,140.58,0.03]
[1741312453023,9.94,140.66,140.58,0.31432314]
[1741312453222,3.50285102,140.67,140.61,0.14216157]
[1741312453418,81.06721193,140.71,140.62,0.14216157]
[1741312454215,81.06721193,140.71,140.61,0.28432314]
[1741312454417,14.34824557,140.72,140.61,49.98120922]
[1741312454809,10.8378294,140.72,140.63,18.933972]
[1741312455136,1.4807,140.76,140.69,0.14216157]
[1741312455836,5.05202587,140.76,140.69,0.14216157]
[1741312456218,23.70167473,140.76,140.68,312.0]
[1741312456425,18.64964886,140.75,140.65,0.14216157]
[1741312456629,1.4807,140.74,140.65,0.14216157]
[1741312457013,109.79902236,140.73,140.6,6.5097]
[1741312457227,0.14216157,140.7,140.58,0.03]
[1741312457422,81.06721193,140.69,140.58,0.03]
[1741312457622,81.06721193,140.69,140.58,1.52313824]
[1741312457811,81.06721193,140.69,140.59,0.17216157]
[1741312458015,81.06721193,140.69,140.59,18.82181043]
[1741312458838,1.6541,140.71,140.61,0.14216157]
[1741312459026,1.4807,140.72,140.61,0.14216157]
[1741312459210,13.56725587,140.73,140.62,1.6347758]
[1741312459411,13.56725587,140.73,140.66,0.28432314]
[1741312459827,3.62725587,140.73,140.66,0.28432314]
[1741312460030,92.48791193,140.75,140.66,0.14216157]
[1741312460224,92.48791193,140.75,140.62,0.14216157]
[1741312460225,99.71686079,140.74,140.62,0.14216157]
[1741312460422,82.54791193,140.73,140.62,0.28432314]
[1741312461736,18.64964886,140.72,140.62,0.28432314]
[1741312461956,18.64964886,140.72,140.59,18.82181043]
[1741312462116,18.64964886,140.72,140.6,0.14216157]
[1741312462317,18.64964886,140.7,140.59,20.1724079]
[1741312462517,1.4807,140.71,140.59,0.03]
[1741312463034,18.64964886,140.7,140.62,0.14216157]
[1741312463234,11.56286157,140.69,140.59,0.03]
[1741312463417,11.4207,140.69,140.59,0.03]
[1741312463736,1.80846157,140.67,140.59,0.03]
[1741312463936,1.4807,140.66,140.59,0.03]
[1741312464751,18.64964886,140.65,140.59,0.03]
[1741312465042,1.4807,140.64,140.59,0.03]
[1741312465339,0.14216157,140.62,140.52,6.1776]
[1741312465641,1.62286157,140.62,140.48,18.933972]
[1741312465818,1.62286157,140.62,140.47,6.1776]
[1741312465819,1.62286157,140.62,140.47,7.67170189]
[1741312466024,1.62286157,140.62,140.48,18.933972]
[1741312466225,1.62286157,140.62,140.52,312.0]
[1741312466439,18.64964886,140.61,140.53,0.14216157]
[1741312466736,1.4807,140.62,140.53,0.14216157]
[1741312467042,9.94,140.63,140.54,0.14216157]
[1741312467441,9.94,140.63,140.53,0.28432314]
[1741312468322,3.53752661,140.66,140.55,18.933972]
[1741312468549,1.6663,140.67,140.57,0.28432314]
[1741312468847,20.27251043,140.66,140.49,137.8]
[1741312469147,18.64964886,140.64,140.49,44.29351183]
[1741312469352,1.4807,140.63,140.5,18.933972]
[1741312469535,20.13034886,140.64,140.52,0.28432314]
[1741312469718,20.13034886,140.64,140.51,1.4938028]
[1741312470047,0.14216157,140.63,140.53,312.0]
[1741312470445,11.4007,140.62,140.53,312.0]
[1741312470628,18.79181043,140.61,140.53,312.0]
[1741312470951,18.64964886,140.59,140.47,18.67964886]
[1741312471125,18.64964886,140.59,140.48,0.28432314]
[1741312471325,18.64964886,140.59,140.47,18.67964886]
[1741312471550,82.54791193,140.6,140.47,18.67964886]
[1741312471732,82.54791193,140.6,140.48,0.14216157]
[1741312472054,82.54791193,140.6,140.48,0.28432314]
[1741312473030,82.54791193,140.6,140.47,20.17367572]
[1741312473031,20.22734886,140.59,140.47,0.03]
[1741312473331,1.4807,140.58,140.47,0.31432314]
[1741312473843,21.70804886,140.59,140.47,0.17216157]
[1741312474025,21.70804886,140.59,140.51,0.14216157]
[1741312474650,21.70804886,140.59,140.48,0.14216157]
[1741312475153,0.14216157,140.58,140.47,0.03]
[1741312475452,6.5173,140.55,140.44,0.03]
[1741312475629,30.05034886,140.54,140.44,0.03]
[1741312475832,35.5049628,140.54,140.44,0.03]
[1741312476341,1.5017,140.51,140.44,0.03]
[1741312476521,2.9824,140.51,140.44,0.03]
[1741312476963,18.64964886,140.5,140.44,0.03]
[1741312477321,2.9824,140.51,140.44,0.03]
[1741312477932,18.64964886,140.5,140.41,312.0]
[1741312478123,99.71686079,140.5,140.41,312.0]
[1741312478325,82.6900735,140.49,140.38,0.03]
[1741312478631,24.81324886,140.47,140.38,0.03]
[1741312478831,1.4807,140.46,140.38,0.03]
[1741312479247,82.56891193,140.45,140.38,0.03]
[1741312479437,18.79181043,140.43,140.31,2.011954]
[1741312479626,11.4007,140.42,140.31,2.011954]
[1741312480051,9.92,140.42,140.32,1.49588486]
[1741312480250,13.56904598,140.42,140.31,2.011954]
[1741312480450,13.56904598,140.42,140.32,18.64964886]
[1741312480626,13.56904598,140.42,140.33,0.28432314]
[1741312481142,3.64904598,140.42,140.35,0.28432314]
[1741312481450,1.5017,140.45,140.38,0.14216157]
[1741312482356,1.5017,140.45,140.36,0.14216157]
[1741312484841,1.5017,140.45,140.4,312.0]
[1741312485254,2.9824,140.45,140.35,0.14216157]
[1741312485548,2.9824,140.45,140.34,24.70704886]
[1741312485754,2.9824,140.45,140.35,0.28432314]
[1741312487136,3.52660196,140.46,140.37,0.28432314]
[1741312487325,6.1636,140.47,140.37,0.28432314]
[1741312488255,6.1636,140.47,140.42,312.0]
[1741312488456,6.1636,140.47,140.41,0.14216157]
[1741312488457,1.4807,140.46,140.35,0.14216157]
[1741312488761,9.92,140.45,140.35,0.14216157]
[1741312489145,9.92,140.45,140.37,0.28432314]
[1741312490163,9.92,140.45,140.37,18.933972]
[1741312490363,90.80856431,140.47,140.37,0.28432314]
[1741312490738,90.80856431,140.47,140.37,46.07299568]
[1741312490962,3.57775238,140.47,140.39,0.28432314]
[1741312491137,1.627,140.49,140.39,0.28432314]
[1741312491338,1.627,140.49,140.44,312.0]
[1741312491747,1.627,140.49,140.45,0.14216157]
[1741312493352,1.66,140.49,140.45,0.14216157]
[1741312493544,0.033,140.49,140.42,0.28432314]
[1741312493863,0.033,140.49,140.44,0.14216157]
[1741312494070,0.033,140.49,140.44,0.28432314]
[1741312495070,0.033,140.49,140.46,0.28432314]
[1741312495362,0.033,140.49,140.48,18.933972]
[1741312496350,0.033,140.49,140.48,330.933972]
[1741312497244,0.033,140.49,140.44,18.64964886]
[1741312497445,0.033,140.49,140.43,18.64964886]
[1741312497675,0.033,140.49,140.44,0.14216157]
[1741312497965,0.033,140.49,140.44,0.28432314]
[1741312498165,0.033,140.49,140.44,0.14216157]
[1741312498476,0.033,140.49,140.42,6.4097]
[1741312499579,0.033,140.49,140.43,18.933972]
[1741312500180,0.033,140.49,140.42,6.4097]
[1741312500352,0.033,140.49,140.43,312.0]
[1741312500555,0.033,140.49,140.44,0.14216157]
[1741312500783,0.033,140.49,140.44,0.28432314]
[1741312500968,0.033,140.49,140.44,0.14216157]
[1741312501160,0.033,140.49,140.43,18.79181043]
[1741312501161,0.033,140.49,140.43,0.28432314]
[1741312501556,0.033,140.49,140.43,0.14216157]
[1741312502156,0.033,140.49,140.44,0.14216157]
[1741312502367,0.033,140.49,140.48,0.14216157]
[1741312502681,0.033,140.49,140.48,64.72142556]
[1741312503260,0.033,140.49,140.48,20.42791373]
[1741312503882,0.033,140.49,140.48,330.933972]
[1741312504089,0.033,140.49,140.48,312.28432314]
[1741312504461,6.98072854,140.57,140.49,0.14216157]
[1741312504655,10.8708294,140.64,140.53,18.79181043]
[1741312504885,10.8708294,140.64,140.55,0.28432314]
[1741312505064,3.51277653,140.63,140.55,0.28432314]
[1741312505673,3.51277653,140.63,140.55,0.14216157]
[1741312505986,5.57133492,140.62,140.55,0.14216157]
[1741312506398,7.05203492,140.62,140.54,0.14216157]
[1741312506688,88.11924685,140.62,140.52,0.14216157]
[1741312507073,86.63854685,140.62,140.54,0.14216157]
[1741312507686,81.06721193,140.62,140.56,0.28432314]
[1741312507876,3.51277653,140.63,140.56,18.933972]
[1741312508072,3.51277653,140.63,140.56,0.28432314]
[1741312508466,3.51277653,140.63,140.56,18.933972]
[1741312508667,0.033,140.64,140.56,0.28432314]
[1741312509594,0.033,140.64,140.58,18.933972]
[1741312509890,0.033,140.64,140.58,283.12748383]
[1741312510062,0.033,140.64,140.62,0.28432314]
[1741312510258,0.033,140.64,140.6,137.8]
[1741312510459,0.033,140.64,140.58,0.14216157]
[1741312510696,0.033,140.64,140.57,0.28432314]
[1741312511284,0.033,140.64,140.57,20.42722759]
[1741312511468,0.033,140.64,140.57,64.72073942]
[1741312511681,0.033,140.64,140.62,312.0]
[1741312511873,0.033,140.64,140.58,0.14216157]
[1741312512584,0.033,140.64,140.6,18.933972]
[1741312512896,0.033,140.64,140.62,63.22748383]
[1741312513065,0.033,140.69,140.64,18.933972]
[1741312513270,0.033,140.69,140.66,18.933972]
[1741312513568,0.033,140.69,140.68,0.28432314]
[1741312514267,0.033,140.69,140.61,18.933972]
[1741312514503,0.033,140.69,140.61,18.79181043]
[1741312514662,0.033,140.69,140.6,169.48]
[1741312514865,0.033,140.69,140.61,312.0]
[1741312515265,0.033,140.69,140.62,18.933972]
[1741312515696,0.033,140.69,140.64,18.933972]
[1741312516081,0.033,140.69,140.66,18.933972]
[1741312516689,0.033,140.69,140.68,0.28432314]
[1741312517198,0.033,140.73,140.68,268.32960323]
[1741312517501,0.033,140.73,140.69,1.49199148]
[1741312517690,0.033,140.73,140.7,48.42960323]
[1741312517998,0.033,140.73,140.72,18.933972]
[1741312518413,0.033,140.73,140.72,580.32960323]
[1741312518625,0.033,140.73,140.72,595.03157545]
[1741312518819,96.54473294,140.82,140.72,595.03157545]
[1741312519021,10.8378294,140.83,140.76,0.28432314]
[1741312520226,16.27629213,140.83,140.76,0.28432314]
[1741312520913,19.75038216,140.83,140.76,0.28432314]
[1741312521425,8.91255276,140.83,140.76,0.14216157]
[1741312521629,1.5137,140.84,140.76,0.14216157]
[1741312521934,1.5137,140.84,140.77,0.14216157]
[1741312522306,5.44810069,140.84,140.77,0.14216157]
[1741312522513,5.44810069,140.84,140.75,18.933972]
[1741312522711,5.44810069,140.84,140.75,0.28432314]
[1741312522927,6.92880069,140.84,140.75,0.28432314]
[1741312523116,99.71686079,140.83,140.69,18.64964886]
[1741312523428,82.54791193,140.82,140.71,0.28432314]
[1741312523727,81.06721193,140.82,140.71,18.933972]
[1741312523901,1.4807,140.81,140.71,0.14216157]
[1741312524102,11.3407,140.81,140.71,0.14216157]
[1741312524331,9.86,140.81,140.71,18.933972]
[1741312524551,9.86,140.81,140.73,0.28432314]
[1741312524825,86.51531262,140.84,140.73,63.13157545]
[1741312525328,86.51531262,140.84,140.73,18.933972]
[1741312525508,86.51531262,140.84,140.78,0.14216157]
[1741312526512,86.51531262,140.84,140.74,0.28432314]
[1741312526947,1.4807,140.83,140.74,0.28432314]
[1741312527316,1.4807,140.83,140.73,18.64964886]
[1741312527537,81.06721193,140.82,140.71,82.1]
[1741312527846,6.0591,140.79,140.67,91.96]
[1741312528010,90.92721193,140.78,140.67,91.96]
[1741312528218,90.92721193,140.78,140.68,18.933972]
[1741312528657,81.06721193,140.77,140.69,312.0]
[1741312528941,1.5246,140.76,140.7,0.14216157]
[1741312529145,82.59181193,140.76,140.69,312.0]
[1741312530325,18.64964886,140.74,140.6,433.7908458]
[1741312530652,82.54791193,140.73,140.62,0.28432314]
[1741312530815,82.54791193,140.73,140.61,18.64964886]
[1741312531120,82.54791193,140.73,140.69,0.03]
[1741312531849,9.84,140.72,140.69,0.03]
[1741312532156,11.3207,140.72,140.69,0.03]
[1741312533756,92.38791193,140.72,140.69,0.03]
[1741312534315,90.90721193,140.72,140.69,0.03]
[1741312536623,90.90721193,140.72,140.69,312.03]
[1741312536825,90.90721193,140.72,140.69,0.03]
[1741312537420,1.4807,140.71,140.69,0.03]
[1741312539216,18.64964886,140.69,140.59,6.0601]
[1741312539438,82.54791193,140.68,140.57,18.64964886]
[1741312539651,101.31276079,140.67,140.56,18.64964886]
[1741312539821,101.31276079,140.67,140.59,312.0]
[1741312539822,92.38791193,140.66,140.59,312.0]
[1741312540021,81.06721193,140.65,140.59,312.0]
[1741312541134,81.06721193,140.65,140.6,0.14216157]
[1741312541443,81.06721193,140.65,140.6,0.28432314]
[1741312541941,15.9701,140.7,140.6,0.28432314]
[1741312542132,9.84,140.7,140.6,31.32077056]
[1741312542332,13.34267999,140.7,140.6,38.43297056]
[1741312542635,13.34267999,140.7,140.6,31.32077056]
[1741312542947,13.34267999,140.7,140.62,0.28432314]
[1741312543446,9.84,140.7,140.63,29.54370369]
[1741312543745,88.74291193,140.74,140.64,18.933972]
[1741312543947,0.033,140.73,140.64,18.933972]
[1741312544156,0.033,140.73,140.66,0.14216157]
[1741312544348,0.033,140.73,140.68,312.0]
[1741312546550,0.033,140.73,140.69,0.14216157]
[1741312546851,0.033,140.73,140.67,0.14216157]
[1741312549138,0.033,140.73,140.66,0.14216157]
[1741312549655,0.033,140.73,140.68,0.14216157]
[1741312550042,0.033,140.73,140.68,0.28432314]
[1741312550349,0.033,140.73,140.66,0.28432314]
[1741312551630,1.5137,140.73,140.63,24.81854886]
[1741312551834,11.3337,140.73,140.63,6.1689]
[1741312552069,11.3337,140.73,140.64,0.28432314]
[1741312552251,11.3337,140.73,140.63,6.1689]
[1741312552454,1.5138,140.72,140.62,18.64964886]
[1741312552630,1.4807,140.71,140.62,18.64964886]
[1741312552826,1.4807,140.71,140.63,0.14216157]
[1741312553027,1.4807,140.71,140.6,219.9]
[1741312553237,1.4807,140.71,140.64,312.0]
[1741312554250,81.06721193,140.7,140.64,312.0]
[1741312555449,81.06721193,140.7,140.59,24.77334886]
[1741312555657,82.54791193,140.69,140.63,0.03]
[1741312555841,81.06721193,140.68,140.63,0.03]
[1741312558552,81.06721193,140.68,140.64,312.0]
[1741312559051,81.06721193,140.68,140.65,0.14216157]
[1741312559253,92.40101193,140.72,140.65,0.14216157]
[1741312559459,0.033,140.73,140.64,0.28432314]
[1741312559759,0.033,140.73,140.66,0.14216157]
[1741312561158,0.033,140.73,140.65,18.64964886]